fUST/lending_fUST_20240512
["ID","MTS","AMOUNT","RATE_DAILY","PERIOD"]
[326851021,1715509914062,-674.93,0.00077808,120]
[326851022,1715509914071,-669.18,0.00077808,120]
[326851023,1715509914081,-662.7,0.00077808,120]
[326851024,1715509914090,-672.84,0.00077808,120]
[326851025,1715509914099,-1082.38,0.00077808,120]
[326851026,1715509914108,-2510.37,0.00077808,120]
[326851027,1715509914117,-4167.16,0.00077808,120]
[326851028,1715509914126,-1216.89,0.00077808,7]
[326851029,1715509914135,-568.37,0.00077808,120]
[326851030,1715509914145,-634.17,0.00077808,120]
[326851031,1715509914155,-711.19,0.00077808,120]
[326851032,1715509914164,-645.64,0.00077808,120]
[326851033,1715509914175,-634.59,0.00077808,120]
[326851034,1715509914184,-522.61,0.00077808,120]
[326851035,1715509914194,-1199.73,0.00077808,120]
[326851036,1715509914206,-852.85,0.00077808,120]
[326851037,1715509914215,-625.2,0.00077808,120]
[326851038,1715509914224,-728.74,0.00077808,120]
[326851039,1715509914234,-501.04,0.00077808,120]
[326851040,1715509914243,-588.33,0.00077808,120]
[326851041,1715509914253,-1576.44,0.00077808,120]
[326851042,1715509914262,-642.78,0.00077808,120]
[326851043,1715509914272,-574.75803987,0.00077808,120]
[326851044,1715509914283,-1474.83,0.00077808,120]
[326851045,1715509914292,-500.0,0.00077808,120]
[326851046,1715509914301,-1138.94,0.00077808,120]
[326851047,1715509914311,-2052.53,0.00077808,120]
[326851048,1715509914320,-3343.91,0.00077808,120]
[326851049,1715509914329,-1280.34,0.00077808,120]
[326851050,1715509914338,-589.15,0.00077808,120]
[326851051,1715509914348,-990.89,0.00077808,120]
[326851052,1715509914357,-1022.63,0.00077808,120]
[326851053,1715509914366,-1377.96,0.00077808,120]
[326851054,1715509914375,-849.72,0.00077808,120]
[326851055,1715509914384,-5000.0,0.00077808,120]
[326851056,1715509914393,-5000.0,0.00077808,120]
[326851057,1715509914403,-5000.0,0.00077808,120]
[326851058,1715509914412,-5000.0,0.00077808,120]
[326851059,1715509914423,-5000.0,0.00077808,120]
[326851060,1715509914432,-5000.0,0.00077808,120]
[326851061,1715509914441,-5000.0,0.00077808,120]
[326851062,1715509914450,-5000.0,0.00077808,120]
[326851063,1715509914460,-5000.0,0.00077808,120]
[326851064,1715509914469,-5000.0,0.00077808,120]
[326851065,1715509914479,-5000.0,0.00077808,120]
[326851066,1715509914489,-5000.0,0.00077808,120]
[326851067,1715509914498,-2169.41,0.00077808,120]
[326851068,1715509914507,-5000.0,0.00077808,120]
[326851069,1715509914517,-658.6,0.00077808,120]
[326851070,1715509914526,-5000.0,0.00077808,120]
[326851071,1715509914536,-5000.0,0.00077808,120]
[326851072,1715509914545,-5000.0,0.00077808,120]
[326851073,1715509914555,-5000.0,0.00077808,120]
[326851074,1715509914564,-5000.0,0.00077808,120]
[326851075,1715509914574,-2128.38501409,0.00077808,120]
[326851076,1715509914583,-926.02,0.00077808,120]
[326851077,1715509914592,-2031.16,0.00077808,120]
[326851078,1715509914602,-1300.61,0.00077808,120]
[326851079,1715509914611,-4158.51,0.00077808,120]
[326851080,1715509914621,-1707.07,0.00077808,120]
[326851081,1715509914630,-747.04,0.00077808,120]
[326851082,1715509914640,-500.0,0.00077808,120]
[326851083,1715509914649,-610.04,0.00077808,120]
[326851084,1715509914659,-809.09,0.00077808,120]
[326851085,1715509914669,-616.93,0.00077808,120]
[326851086,1715509914678,-555.14,0.00077808,120]
[326851087,1715509914687,-663.17,0.00077808,60]
[326851088,1715509914696,-1965.65,0.00077808,120]
[326851089,1715509914706,-1720.11,0.00077808,120]
[326851090,1715509914715,-1258.86,0.00077808,7]
[326851091,1715509914724,-531.16,0.00077808,120]
[326851092,1715509914733,-1275.8,0.00077808,120]
[326851093,1715509914743,-1330.34,0.00077808,120]
[326851094,1715509914752,-1477.44,0.00077808,120]
[326851095,1715509914761,-1415.41,0.00077808,120]
[326851096,1715509914771,-790.3,0.00077808,120]
[326851097,1715509914781,-1299.65,0.00077808,120]
[326851098,1715509914790,-631.96,0.00077808,120]
[326851099,1715509914800,-775.43,0.00077808,120]
[326851100,1715509914810,-4428.92,0.00077808,120]
[326851101,1715509914819,-974.56,0.00077808,120]
[326851102,1715509914829,-1052.97,0.00077808,120]
[326851103,1715509914838,-3584.43,0.00077808,120]
[326851104,1715509914848,-721.17,0.00077808,120]
[326851105,1715509914858,-661.04,0.00077808,120]
[326851106,1715509914868,-625.85,0.00077808,120]
[326851107,1715509914878,-614.26,0.00077808,120]
[326851108,1715509914888,-980.18,0.00077808,120]
[326851109,1715509914898,-1131.83,0.00077808,120]
[326851110,1715509914907,-583.64,0.00077808,120]
[326851111,1715509914917,-513.88,0.00077808,120]
[326851112,1715509914927,-5121.64,0.00077808,120]
[326851113,1715509914936,-2410.3,0.00077808,120]
[326851114,1715509914946,-1457.89,0.00077808,120]
[326851115,1715509914956,-719.29,0.00077808,120]
[326851116,1715509914965,-1228.7,0.00077808,120]
[326851117,1715509914974,-1264.94,0.00077808,120]
[326851118,1715509914983,-1513.78,0.00077808,120]
[326851119,1715509914993,-673.28,0.00077808,120]
[326851120,1715509915003,-694.76,0.00077808,120]
[326851121,1715509915012,-1272.39,0.00077808,120]
[326851122,1715509915022,-2272.31,0.00077808,120]
[326851123,1715509915031,-11483.2,0.00077808,120]
[326851124,1715509915040,-606.15,0.00077808,120]
[326851125,1715509915049,-765.03,0.00077808,120]
[326851126,1715509915058,-910.45,0.00077808,120]
[326851127,1715509915067,-1594.77,0.00077808,120]
[326851128,1715509915077,-749.73,0.00077808,120]
[326851129,1715509915086,-1094.1,0.00077808,120]
[326851130,1715509915095,-760.68,0.00077808,120]
[326851131,1715509915104,-1439.15,0.00077808,120]
[326851132,1715509915113,-728.36,0.00077808,120]
[326851133,1715509915122,-554.07,0.00077808,120]
[326851134,1715509915132,-851.93,0.00077808,120]
[326851135,1715509915142,-1275.67,0.00077808,120]
[326851136,1715509915151,-21061.66,0.00077808,120]
[326851137,1715509915161,-697.89,0.00077808,120]
[326851138,1715509915171,-1584.34,0.00077808,120]
[326851139,1715509915180,-5000.0,0.000779,120]
[326851140,1715509915189,-5000.0,0.00078,30]
[326851141,1715509915200,-151.0,0.00078,120]
[326851142,1715509915213,-166.666666,0.00078555,120]
[326851143,1715509915223,-450.31785194,0.00078904,120]
[326851144,1715509915232,-792.18,0.00078904,120]
[326851145,1715509915241,-700.0,0.00078904,120]
[326851146,1715509915250,-687.88,0.00078904,120]
[326851147,1715509915259,-1184.42,0.00078904,120]
[326851148,1715509915269,-622.05,0.00078904,120]
[326851149,1715509915279,-517.74240989,0.00078904,120]
[326851150,1715509915288,-1188.88,0.00078904,120]
[326851151,1715509915298,-664.65,0.00078904,120]
[326851152,1715509915308,-706.45,0.00078904,120]
[326851153,1715509915317,-589.94,0.00078904,120]
[326851154,1715509915327,-718.87,0.00078904,120]
[326851155,1715509915336,-668.81,0.00078904,120]
[326851156,1715509915346,-1198.11,0.00078904,120]
[326851157,1715509915355,-859.74,0.00078904,120]
[326851158,1715509915364,-1019.78,0.00078904,120]
[326851159,1715509915374,-1222.61,0.00078904,120]
[326851160,1715509915383,-1076.09,0.00078904,4]
[326851161,1715509915392,-777.18,0.00078904,120]
[326851162,1715509915403,-623.85,0.00078904,120]
[326851163,1715509915412,-404.78858253,0.00078904,7]
[326851164,1715509915422,-879.42,0.00078904,120]
[326851165,1715509915431,-245.86451426,0.00078904,120]
[326851166,1715509915441,-1022.56,0.00078904,120]
[326851167,1715509915451,-1415.7,0.00078904,120]
[326851168,1715509915460,-702.94,0.00078904,120]
[326851169,1715509915470,-676.96,0.00078904,120]
[326851170,1715509915479,-1146.59,0.00078904,120]
[326851171,1715509915488,-846.45,0.00078904,120]
[326851172,1715509915498,-506.08,0.00078904,120]
[326851173,1715509915507,-694.21,0.00078904,120]
[326851174,1715509915516,-534.57,0.00078904,120]
[326851175,1715509915526,-628.13,0.00078904,120]
[326851176,1715509915535,-563.98,0.00078904,120]
[326851177,1715509915544,-1333.29,0.00078904,120]
[326851178,1715509915553,-2080.97,0.00078904,120]
[326851179,1715509915562,-697.5,0.00078904,120]
[326851180,1715509915572,-1146.84,0.00078904,120]
[326851181,1715509915581,-1062.31,0.00078904,120]
[326851182,1715509915590,-887.25,0.00078904,120]
[326851183,1715509915599,-884.99,0.00078904,120]
[326851184,1715509915619,-1945.84,0.00078904,120]
[326851185,1715509915629,-1101.29,0.00078904,120]
[326851186,1715509915638,-683.11,0.00078904,120]
[326851187,1715509915647,-634.75,0.00078904,120]
[326851188,1715509915657,-1202.07,0.00078904,120]
[326851189,1715509915666,-652.77,0.00078904,120]
[326851190,1715509915677,-665.8,0.00078904,120]
[326851191,1715509915687,-1296.67,0.00078904,120]
[326851192,1715509915696,-2405.12,0.00078904,120]
[326851193,1715509915705,-515.15,0.00078904,120]
[326851194,1715509915715,-1711.77,0.00078904,120]
[326851195,1715509915724,-634.68,0.00078904,120]
[326851196,1715509915733,-674.93,0.00078904,120]
[326851197,1715509915742,-662.7,0.00078904,120]
[326851198,1715509915751,-669.18,0.00078904,120]
[326851199,1715509915760,-672.84,0.00078904,120]
[326851200,1715509915770,-1082.38,0.00078904,120]
[326851201,1715509915779,-2510.37,0.00078904,120]
[326851202,1715509915789,-4167.16,0.00078904,120]
[326851203,1715509915798,-1216.89,0.00078904,7]
[326851204,1715509915808,-568.37,0.00078904,120]
[326851205,1715509915817,-634.17,0.00078904,120]
[326851206,1715509915826,-711.19,0.00078904,120]
[326851207,1715509915835,-645.64,0.00078904,120]
[326851208,1715509915844,-634.59,0.00078904,120]
[326851209,1715509915853,-522.61,0.00078904,120]
[326851210,1715509915862,-1199.73,0.00078904,120]
[326851211,1715509915872,-852.85,0.00078904,120]
[326851212,1715509915881,-625.2,0.00078904,120]
[326851213,1715509915891,-728.74,0.00078904,120]
[326851214,1715509915900,-501.04,0.00078904,120]
[326851215,1715509915910,-588.33,0.00078904,120]
[326851216,1715509915921,-1576.44,0.00078904,120]
[326851217,1715509915931,-642.78,0.00078904,120]
[326851218,1715509915940,-1474.83,0.00078904,120]
[326851219,1715509915949,-500.0,0.00078904,120]
[326851220,1715509915958,-1138.94,0.00078904,120]
[326851221,1715509915967,-2052.53,0.00078904,120]
[326851222,1715509915976,-3343.91,0.00078904,120]
[326851223,1715509915986,-1280.34,0.00078904,120]
[326851224,1715509915995,-589.15,0.00078904,120]
[326851225,1715509916005,-990.89,0.00078904,120]
[326851226,1715509916014,-1022.63,0.00078904,120]
[326851227,1715509916023,-1377.96,0.00078904,120]
[326851228,1715509916032,-849.72,0.00078904,120]
[326851229,1715509916042,-2169.41,0.00078904,120]
[326851230,1715509916051,-658.6,0.00078904,120]
[326851231,1715509916060,-926.02,0.00078904,120]
[326851232,1715509916069,-2031.16,0.00078904,120]
[326851233,1715509916079,-1300.61,0.00078904,120]
[326851234,1715509916088,-4158.51,0.00078904,120]
[326851235,1715509916098,-1707.07,0.00078904,120]
[326851236,1715509916108,-747.04,0.00078904,120]
[326851237,1715509916117,-577.21516868,0.00078904,120]
[326851238,1715509916127,-610.04,0.00078904,120]
[326851239,1715509916136,-809.09,0.00078904,120]
[326851240,1715509916145,-616.93,0.00078904,120]
[326851241,1715509916154,-555.14,0.00078904,120]
[326851242,1715509916163,-663.17,0.00078904,60]
[326851243,1715509916174,-1965.65,0.00078904,120]
[326851244,1715509916183,-1720.11,0.00078904,120]
[326851245,1715509916192,-1258.86,0.00078904,7]
[326851246,1715509916201,-531.16,0.00078904,120]
[326851247,1715509916215,-1275.8,0.00078904,120]
[326851248,1715509916224,-1330.34,0.00078904,120]
[326851249,1715509916233,-1477.44,0.00078904,120]
[326851250,1715509916243,-1415.41,0.00078904,120]
[326851251,1715509916253,-790.3,0.00078904,120]
[326851252,1715509916262,-1299.65,0.00078904,120]
[326851253,1715509916272,-631.96,0.00078904,120]
[326851254,1715509916282,-775.43,0.00078904,120]
[326851255,1715509916293,-4428.92,0.00078904,120]
[326851256,1715509916302,-974.56,0.00078904,120]
[326851257,1715509916312,-1052.97,0.00078904,120]
[326851258,1715509916321,-3584.43,0.00078904,120]
[326851259,1715509916330,-721.17,0.00078904,120]
[326851260,1715509916339,-661.04,0.00078904,120]
[326851261,1715509916348,-625.85,0.00078904,120]
[326851262,1715509916358,-614.26,0.00078904,120]
[326851263,1715509916367,-980.18,0.00078904,120]
[326851264,1715509916377,-1131.83,0.00078904,120]
[326851265,1715509916386,-583.64,0.00078904,120]
[326851266,1715509916395,-513.88,0.00078904,120]
[326851267,1715509916405,-2410.3,0.00078904,120]
[326851268,1715509916414,-5121.64,0.00078904,120]
[326851269,1715509916424,-1457.89,0.00078904,120]
[326851270,1715509916433,-719.29,0.00078904,120]
[326851271,1715509916443,-1228.7,0.00078904,120]
[326851272,1715509916452,-1513.78,0.00078904,120]
[326851273,1715509916461,-1264.94,0.00078904,120]
[326851274,1715509916470,-673.28,0.00078904,120]
[326851275,1715509916480,-694.76,0.00078904,120]
[326851276,1715509916489,-1272.39,0.00078904,120]
[326851277,1715509916498,-2272.31,0.00078904,120]
[326851278,1715509916507,-11483.2,0.00078904,120]
[326851279,1715509916517,-606.15,0.00078904,120]
[326851280,1715509916526,-765.03,0.00078904,120]
[326851281,1715509916536,-910.45,0.00078904,120]
[326851282,1715509916545,-1594.77,0.00078904,120]
[326851283,1715509916554,-749.73,0.00078904,120]
[326851284,1715509916563,-1094.1,0.00078904,120]
[326851285,1715509916572,-760.68,0.00078904,120]
[326851286,1715509916582,-1439.15,0.00078904,120]
[326851287,1715509916591,-728.36,0.00078904,120]
[326851288,1715509916600,-554.07,0.00078904,120]
[326851289,1715509916611,-851.93,0.00078904,120]
[326851290,1715509916622,-1275.67,0.00078904,120]
[326851291,1715509916633,-21061.66,0.00078904,120]
[326851292,1715509916643,-697.89,0.00078904,120]
[326851293,1715509916653,-1584.34,0.00078904,120]
[326851294,1715509916780,-200000.0,0.00079,120]
[326851295,1715509916802,-151.0,0.00079178,120]
[326851296,1715509916811,-271.20146706,0.0007945,120]
[326851297,1715509916820,-500.0,0.00079452,120]
[326851298,1715509916829,-226.23136571,0.000798,30]
[326851299,1715509916839,-744.0604809,0.00079999,120]
[326851300,1715509916848,-744.0604809,0.00079999,120]
[326851301,1715509916857,-744.0604809,0.00079999,120]
[326851302,1715509916866,-744.0604809,0.00079999,120]
[326851303,1715509916875,-744.0604809,0.00079999,120]
[326851304,1715509916884,-744.0604809,0.00079999,120]
[326851305,1715509916894,-744.0604809,0.00079999,120]
[326851306,1715509916903,-744.0604809,0.00079999,120]
[326851307,1715509916912,-744.0604809,0.00079999,120]
[326851308,1715509916921,-744.0604809,0.00079999,120]
[326851309,1715509916930,-744.0604809,0.00079999,120]
[326851310,1715509916939,-744.0604809,0.00079999,120]
[326851311,1715509916948,-744.0604809,0.00079999,120]
[326851312,1715509916957,-744.0604809,0.00079999,120]
[326851313,1715509916966,-744.0604809,0.00079999,120]
[326851314,1715509916977,-744.0604809,0.00079999,120]
[326851315,1715509916985,-781.26350494,0.00079999,120]
[326851316,1715509916994,-781.26350494,0.00079999,120]
[326851317,1715509917004,-781.26350494,0.00079999,120]
[326851318,1715509917013,-781.26350494,0.00079999,120]
[326851319,1715509917022,-781.26350494,0.00079999,120]
[326851320,1715509917031,-781.26350494,0.00079999,120]
[326851321,1715509917040,-781.26350494,0.00079999,120]
[326851322,1715509917049,-781.26350494,0.00079999,120]
[326851323,1715509917059,-781.26350494,0.00079999,120]
[326851324,1715509917069,-781.26350494,0.00079999,120]
[326851325,1715509917079,-781.26350494,0.00079999,120]
[326851326,1715509917089,-781.26350494,0.00079999,120]
[326851327,1715509917099,-781.26350494,0.00079999,120]
[326851328,1715509917108,-781.26350494,0.00079999,120]
[326851329,1715509917118,-781.26350494,0.00079999,120]
[326851330,1715509917127,-781.26350494,0.00079999,120]
[326851331,1715509917137,-5000.0,0.0008,48]
[326851332,1715509917147,-662.13910538,0.0008,50]
[326851333,1715509917158,-3992.56459385,0.0008,2]
[326851334,1715509917168,-220.30712469,0.0008,120]
[326851335,1715509917178,-165.71902634,0.0008,10]
[326851336,1715509917187,-1000.0,0.0008,120]
[326851337,1715509917196,-500000.0,0.0008,120]
[326851338,1715509917210,-2498.53867206,0.0008,120]
[326851339,1715509917220,-2259.0272435,0.0008,120]
[326851340,1715509917229,-300.0,0.0008,105]
[326851341,1715509917239,-792.28977413,0.0008,120]
[326851342,1715509917248,-700.23549068,0.0008,120]
[326851343,1715509917258,-687.97292859,0.0008,120]
[326851344,1715509917267,-1184.42587901,0.0008,120]
[326851345,1715509917277,-622.22089214,0.0008,120]
[326851346,1715509917286,-1189.10401025,0.0008,120]
[326851347,1715509917295,-664.78980444,0.0008,120]
[326851348,1715509917304,-706.59113035,0.0008,120]
[326851349,1715509917313,-589.94903465,0.0008,120]
[326851350,1715509917322,-718.97633231,0.0008,120]
[326851351,1715509917332,-668.96183008,0.0008,120]
[326851352,1715509917341,-1198.25869544,0.0008,120]
[326851353,1715509917350,-859.92990769,0.0008,120]
[326851354,1715509917359,-1019.80977972,0.0008,120]
[326851355,1715509917368,-1222.74015201,0.0008,120]
[326851356,1715509917378,-1076.15494895,0.0008,4]
[326851357,1715509917387,-777.39796698,0.0008,120]
[326851358,1715509917396,-624.07841495,0.0008,120]
[326851359,1715509917405,-879.58783978,0.0008,120]
[326851360,1715509917414,-1022.68263088,0.0008,120]
[326851361,1715509917425,-1415.77852787,0.0008,120]
[326851362,1715509917433,-702.97439279,0.0008,120]
[326851363,1715509917442,-677.03079064,0.0008,120]
[326851364,1715509917451,-1146.77182061,0.0008,120]
[326851365,1715509917460,-846.59358606,0.0008,120]
[326851366,1715509917470,-506.2952533,0.0008,120]
[326851367,1715509917479,-694.3556294,0.0008,120]
[326851368,1715509917488,-534.67795531,0.0008,120]
[326851369,1715509917497,-628.21232301,0.0008,120]
[326851370,1715509917506,-564.20751036,0.0008,120]
[326851371,1715509917515,-1333.51520849,0.0008,120]
[326851372,1715509917524,-2081.107413,0.0008,120]
[326851373,1715509917533,-697.7,0.0008,120]
[326851374,1715509917542,-1147.00721236,0.0008,120]
[326851375,1715509917551,-1062.41456407,0.0008,120]
[326851376,1715509917560,-887.35437111,0.0008,120]
[326851377,1715509917569,-885.17902687,0.0008,120]
[326851378,1715509917579,-1946.02908501,0.0008,120]
[326851379,1715509917588,-1101.38318957,0.0008,120]
[326851380,1715509917597,-683.1461493,0.0008,120]
[326851381,1715509917606,-1775.630883,0.0008,120]
[326851382,1715509917615,-634.9811343,0.0008,120]
[326851383,1715509917624,-1202.2585243,0.0008,120]
[326851384,1715509917633,-652.83865322,0.0008,120]
[326851385,1715509917643,-665.94327385,0.0008,120]
[326851386,1715509917652,-1296.75135268,0.0008,120]
[326851387,1715509917661,-2405.18069842,0.0008,120]
[326851388,1715509917671,-515.1895738,0.0008,120]
[326851389,1715509917680,-1711.77385439,0.0008,120]
[326851390,1715509917690,-634.68536413,0.0008,120]
[326851391,1715509917699,-674.9680514,0.0008,120]
[326851392,1715509917709,-669.35405257,0.0008,120]
[326851393,1715509917718,-662.82056361,0.0008,120]
[326851394,1715509917728,-673.00545789,0.0008,120]
[326851395,1715509917738,-1082.54,0.0008,120]
[326851396,1715509917747,-2510.40135567,0.0008,120]
[326851397,1715509917757,-4167.25992963,0.0008,120]
[326851398,1715509917767,-1217.11757189,0.0008,7]
[326851399,1715509917776,-568.42304319,0.0008,120]
[326851400,1715509917785,-634.34070456,0.0008,120]
[326851401,1715509917795,-711.32463333,0.0008,120]
[326851402,1715509917804,-645.81974866,0.0008,120]
[326851403,1715509917813,-634.74085078,0.0008,120]
[326851404,1715509917822,-522.74977136,0.0008,120]
[326851405,1715509917831,-1199.94643105,0.0008,120]
[326851406,1715509917840,-853.04581283,0.0008,120]
[326851407,1715509917849,-625.41032554,0.0008,120]
[326851408,1715509917858,-728.75198952,0.0008,120]
[326851409,1715509917867,-501.12159126,0.0008,120]
[326851410,1715509917876,-588.4275807,0.0008,120]
[326851411,1715509917885,-1576.65777175,0.0008,120]
[326851412,1715509917895,-642.80945917,0.0008,120]
[326851413,1715509917905,-1474.89713026,0.0008,120]
[326851414,1715509917914,-399.22700837,0.0008,120]
[326851415,1715509917925,-1138.95050781,0.0008,120]
[326851416,1715509917935,-2052.6126667,0.0008,120]
[326851417,1715509917943,-3343.99413154,0.0008,120]
[326851418,1715509917953,-1280.56679906,0.0008,120]
[326851419,1715509917961,-589.18126783,0.0008,120]
[326851420,1715509917971,-991.01041976,0.0008,120]
[326851421,1715509917980,-1022.66914719,0.0008,120]
[326851422,1715509917989,-1378.16833959,0.0008,120]
[326851423,1715509917998,-849.85874956,0.0008,120]
[326851424,1715509918007,-2169.57950014,0.0008,120]
[326851425,1715509918017,-658.80709766,0.0008,120]
[326851426,1715509918026,-926.17288837,0.0008,120]
[326851427,1715509918036,-2031.16674993,0.0008,120]
[326851428,1715509918045,-1300.84274657,0.0008,120]
[326851429,1715509918054,-4158.52040354,0.0008,120]
[326851430,1715509918064,-1707.12669826,0.0008,120]
[326851431,1715509918073,-747.23590494,0.0008,120]
[326851432,1715509918082,-610.26682707,0.0008,120]
[326851433,1715509918092,-809.1901011,0.0008,120]
[326851434,1715509918101,-617.00253838,0.0008,120]
[326851435,1715509918110,-555.34532435,0.0008,120]
[326851436,1715509918120,-663.20521992,0.0008,60]
[326851437,1715509918129,-1965.76274192,0.0008,120]
[326851438,1715509918138,-1720.27398308,0.0008,120]
[326851439,1715509918147,-1258.98470856,0.0008,7]
[326851440,1715509918157,-531.33,0.0008,120]
[326851441,1715509918166,-1275.80257422,0.0008,120]
[326851442,1715509918177,-1330.44781487,0.0008,120]
[326851443,1715509918186,-1477.67585028,0.0008,120]
[326851444,1715509918195,-1415.56769166,0.0008,120]
[326851445,1715509918209,-790.46,0.0008,120]
[326851446,1715509918219,-1299.78661481,0.0008,120]
[326851447,1715509918228,-632.12180311,0.0008,120]
[326851448,1715509918238,-775.47625081,0.0008,120]
[326851449,1715509918248,-4429.11291779,0.0008,120]
[326851450,1715509918259,-974.71022088,0.0008,120]
[326851451,1715509918269,-1052.9773908,0.0008,120]
[326851452,1715509918278,-3584.5530509,0.0008,120]
[326851453,1715509918288,-721.21093389,0.0008,120]
[326851454,1715509918301,-661.20161131,0.0008,120]
[326851455,1715509918311,-625.88853569,0.0008,120]
[326851456,1715509918320,-614.37766163,0.0008,120]
[326851457,1715509918329,-980.38413666,0.0008,120]
[326851458,1715509918338,-1131.96662768,0.0008,120]
[326851459,1715509918347,-583.81647568,0.0008,120]
[326851460,1715509918356,-513.88040517,0.0008,120]
[326851461,1715509918366,-2410.44684971,0.0008,120]
[326851462,1715509918376,-5121.86771386,0.0008,120]
[326851463,1715509918386,-1458.06405861,0.0008,120]
[326851464,1715509918396,-719.48315696,0.0008,120]
[326851465,1715509918405,-1228.88075198,0.0008,120]
[326851466,1715509918415,-1513.79479097,0.0008,120]
[326851467,1715509918427,-1265.05463553,0.0008,120]
[326851468,1715509918438,-673.38139426,0.0008,120]
[326851469,1715509918450,-694.76156138,0.0008,120]
[326851470,1715509918461,-1272.59,0.0008,120]
[326851471,1715509918471,-2272.48654494,0.0008,120]
[326851472,1715509918480,-11483.4,0.0008,120]
[326851473,1715509918490,-606.32989836,0.0008,120]
[326851474,1715509918500,-765.22980864,0.0008,120]
[326851475,1715509918509,-910.6619043,0.0008,120]
[326851476,1715509918518,-1594.8265116,0.0008,120]
[326851477,1715509918528,-749.85489642,0.0008,120]
[326851478,1715509918538,-1094.31419914,0.0008,120]
[326851479,1715509918547,-760.77642185,0.0008,120]
[326851480,1715509918556,-1439.31452367,0.0008,120]
[326851481,1715509918566,-728.56672438,0.0008,120]
[326851482,1715509918575,-554.19,0.0008,120]
[326851483,1715509918585,-851.93498258,0.0008,120]
[326851484,1715509918594,-1275.70589141,0.0008,120]
[326851485,1715509918603,-21061.70688395,0.0008,120]
[326851486,1715509918612,-698.03126287,0.0008,120]
[326851487,1715509918621,-164.239022,0.00080274,120]
[326851488,1715509918630,-151.0,0.00080356,120]
[326851489,1715509918639,-500000.0,0.00081,120]
[326851490,1715509918648,-636.57894699,0.000814,28]
[326851491,1715509918658,-300.0,0.000815,106]
[326851492,1715509918668,-151.0,0.00081534,120]
[326851493,1715509918678,-500000.0,0.00082,120]
[326851494,1715509918687,-500.0,0.00082191,120]
[326851495,1715509918696,-151.0,0.00082712,120]
[326851496,1715509918706,-300.0,0.00083,107]
[326851497,1715509918715,-285.164937,0.00083259,120]
[326851498,1715509918724,-151.0,0.0008389,120]
[326851499,1715509918733,-502.37505454,0.000845,108]
[326851500,1715509918742,-312.95882756,0.00084931,120]
[326851501,1715509918751,-500000.0,0.00085,120]
[326851502,1715509918761,-500000.0,0.00085,120]
[326851503,1715509918770,-2498.53867206,0.00085,120]
[326851504,1715509918779,-151.0,0.00085068,120]
[326851505,1715509918788,-150.74373565,0.0008594,2]
[326851506,1715509918798,-151.0,0.00086247,120]
[326851507,1715509918807,-151.0,0.00087425,120]
[326851508,1715509918817,-500000.0,0.000875,120]
[326851509,1715509918826,-500000.0,0.000875,120]
[326851510,1715509918835,-2000.0,0.00087676,120]
[326851511,1715509918844,-23666.83309086,0.00088,120]
[326851512,1715509918854,-166.666666,0.00088294,120]
[326851513,1715509918863,-167.361754,0.00088376,120]
[326851514,1715509918873,-151.0,0.00088603,120]
[326851515,1715509918882,-1000.0,0.00088698,90]
[326851516,1715509918892,-12550.63737657,0.00088889,120]
[326851517,1715509918901,-285.164937,0.00089229,120]
[326851518,1715509918911,-314.0,0.00089781,120]
[326851519,1715509918921,-5000.0,0.0009,48]
[326851520,1715509918930,-1000.0,0.0009,120]